[Event "Early-Titled-Tuesday-Blitz-May-07-2024"]
[Site "Chess.com"]
[Date "2024.05.07"]
[Round "6"]
[White "Doublekk14"]
[Black "Gryffindorac8"]
[Result "0-1"]
[WhiteElo "2350"]
[BlackElo "2524"]
[TimeControl "180+1"]
[EndTime "9:09:47 PDT"]
[Termination "Gryffindorac8 won on time"]

1. c4 {[%clk 0:03:00.9]} 1... Nf6 {[%clk 0:02:59.5]} 2. Nc3 {[%clk 0:02:59.1]}
2... c5 {[%clk 0:02:59]} 3. Nf3 {[%clk 0:02:56.1]} 3... e6 {[%clk 0:02:54.4]} 4.
e3 {[%clk 0:02:55.7]} 4... d5 {[%clk 0:02:54.2]} 5. d4 {[%clk 0:02:54.5]} 5...
Nc6 {[%clk 0:02:54.5]} 6. Be2 {[%clk 0:02:53.3]} 6... Be7 {[%clk 0:02:51.1]} 7.
O-O {[%clk 0:02:52.7]} 7... O-O {[%clk 0:02:50.6]} 8. b3 {[%clk 0:02:51.4]} 8...
cxd4 {[%clk 0:02:46.8]} 9. exd4 {[%clk 0:02:48]} 9... b6 {[%clk 0:02:46]} 10.
Bf4 {[%clk 0:02:40.2]} 10... Bb7 {[%clk 0:02:42.7]} 11. h3 {[%clk 0:02:34.9]}
11... Rc8 {[%clk 0:02:39.8]} 12. Qd2 {[%clk 0:02:07.5]} 12... dxc4 {[%clk
0:02:31.2]} 13. bxc4 {[%clk 0:02:07]} 13... Na5 {[%clk 0:02:29.3]} 14. Ne5
{[%clk 0:02:00]} 14... Nd7 {[%clk 0:02:18.5]} 15. c5 {[%clk 0:01:24.4]} 15...
Nxe5 {[%clk 0:02:10.6]} 16. Bxe5 {[%clk 0:01:22.7]} 16... bxc5 {[%clk
0:02:05.5]} 17. Nb5 {[%clk 0:01:22.7]} 17... Nc6 {[%clk 0:01:29.8]} 18. Rad1
{[%clk 0:00:57.5]} 18... a6 {[%clk 0:01:18.6]} 19. Na3 {[%clk 0:00:06.4]} 19...
cxd4 {[%clk 0:01:14]} 0-1

[Event "Early-Titled-Tuesday-Blitz-May-07-2024"]
[Site "Chess.com"]
[Date "2024.05.07"]
[Round "6"]
[White "rikchessmx"]
[Black "Aklan10n"]
[Result "0-1"]
[WhiteElo "2381"]
[BlackElo "2224"]
[TimeControl "180+1"]
[EndTime "9:09:47 PDT"]
[Termination "Aklan10n won by checkmate"]

1. e4 {[%clk 0:02:53.3]} 1... c5 {[%clk 0:02:53.2]} 2. Nf3 {[%clk 0:02:52.6]}
2... Nc6 {[%clk 0:02:53.1]} 3. d4 {[%clk 0:02:52.3]} 3... cxd4 {[%clk
0:02:53.1]} 4. Nxd4 {[%clk 0:02:53.2]} 4... Qb6 {[%clk 0:02:52.9]} 5. Nb3 {[%clk
0:02:51.7]} 5... g6 {[%clk 0:02:50.1]} 6. Nc3 {[%clk 0:02:52.1]} 6... Bg7 {[%clk
0:02:50.1]} 7. Be3 {[%clk 0:02:51.9]} 7... Qd8 {[%clk 0:02:49.9]} 8. f4 {[%clk
0:02:51.4]} 8... Nh6 {[%clk 0:02:48.1]} 9. g4 {[%clk 0:02:48.8]} 9... d5 {[%clk
0:02:38.7]} 10. exd5 {[%clk 0:02:48.7]} 10... Bxg4 {[%clk 0:02:37]} 11. Qd2
{[%clk 0:02:46.5]} 11... Nb8 {[%clk 0:02:36.1]} 12. h3 {[%clk 0:02:44]} 12...
Bh5 {[%clk 0:02:35.2]} 13. Bb5+ {[%clk 0:02:40]} 13... Nd7 {[%clk 0:02:35]} 14.
Nc5 {[%clk 0:02:39.5]} 14... O-O {[%clk 0:02:32]} 15. Nxd7 {[%clk 0:02:38.6]}
15... a6 {[%clk 0:02:20.3]} 16. Nxf8 {[%clk 0:02:36.3]} 16... axb5 {[%clk
0:02:20.9]} 17. Nxh7 {[%clk 0:02:33.8]} 17... Kxh7 {[%clk 0:02:20.4]} 18. O-O
{[%clk 0:02:17]} 18... Nf5 {[%clk 0:02:05.4]} 19. a3 {[%clk 0:01:57.4]} 19...
Qd7 {[%clk 0:01:40.3]} 20. Rae1 {[%clk 0:01:50.2]} 20... Nh4 {[%clk 0:01:32.9]}
21. Kh2 {[%clk 0:01:23.7]} 21... Nf3+ {[%clk 0:01:30.9]} 22. Rxf3 {[%clk
0:01:23.8]} 22... Bxf3 {[%clk 0:01:31.7]} 23. Bd4 {[%clk 0:01:24]} 23... Bh6
{[%clk 0:01:24.4]} 24. Be3 {[%clk 0:01:06.2]} 24... Rd8 {[%clk 0:01:10.9]} 25.
f5 {[%clk 0:01:06.3]} 25... Qd6+ {[%clk 0:00:51.7]} 26. Kg1 {[%clk 0:01:02.1]}
26... Qg3+ {[%clk 0:00:51.3]} 27. Kf1 {[%clk 0:01:00.2]} 27... Qxh3+ {[%clk
0:00:42.2]} 28. Kg1 {[%clk 0:00:58.7]} 28... Qh1+ {[%clk 0:00:34.1]} 29. Kf2
{[%clk 0:00:58.3]} 29... Qg2# {[%clk 0:00:34.8]} 0-1

[Event "Early-Titled-Tuesday-Blitz-May-07-2024"]
[Site "Chess.com"]
[Date "2024.05.07"]
[Round "6"]
[White "RebelJohnny"]
[Black "ChessQueen"]
[Result "0-1"]
[WhiteElo "2567"]
[BlackElo "2808"]
[TimeControl "180+1"]
[EndTime "9:09:48 PDT"]
[Termination "ChessQueen won by resignation"]

1. e4 {[%clk 0:02:56.9]} 1... c6 {[%clk 0:02:59.2]} 2. d4 {[%clk 0:02:56.6]}
2... d5 {[%clk 0:03:00.1]} 3. Nd2 {[%clk 0:02:57.4]} 3... dxe4 {[%clk
0:03:00.2]} 4. Nxe4 {[%clk 0:02:58.3]} 4... Nf6 {[%clk 0:03:00.8]} 5. Nxf6+
{[%clk 0:02:58.7]} 5... exf6 {[%clk 0:03:01.7]} 6. c3 {[%clk 0:02:59.4]} 6...
Bd6 {[%clk 0:03:01.6]} 7. Bd3 {[%clk 0:02:59.6]} 7... Na6 {[%clk 0:03:00.3]} 8.
Ne2 {[%clk 0:02:56.4]} 8... Nc7 {[%clk 0:02:59]} 9. Qc2 {[%clk 0:02:50.9]} 9...
h5 {[%clk 0:02:57.7]} 10. O-O {[%clk 0:02:48.4]} 10... Nd5 {[%clk 0:02:57.1]}
11. a3 {[%clk 0:02:45.5]} 11... h4 {[%clk 0:02:55.1]} 12. c4 {[%clk 0:02:36.7]}
12... Ne7 {[%clk 0:02:55]} 13. h3 {[%clk 0:02:24.3]} 13... g5 {[%clk 0:02:50.9]}
14. Nc3 {[%clk 0:01:52]} 14... Bc7 {[%clk 0:02:36.6]} 15. Be3 {[%clk 0:01:28.7]}
15... g4 {[%clk 0:02:30.5]} 16. hxg4 {[%clk 0:01:21.1]} 16... h3 {[%clk
0:02:31]} 17. g3 {[%clk 0:01:13.4]} 17... h2+ {[%clk 0:02:31]} 18. Kh1 {[%clk
0:01:13.2]} 18... Bxg4 {[%clk 0:02:30.7]} 19. Be4 {[%clk 0:01:03.2]} 19... f5
{[%clk 0:02:26.4]} 20. Bg2 {[%clk 0:00:59.4]} 20... Qd7 {[%clk 0:02:25.8]} 21.
d5 {[%clk 0:00:53.3]} 21... O-O-O {[%clk 0:02:22.1]} 22. Bg5 {[%clk 0:00:36.8]}
22... f4 {[%clk 0:02:17.1]} 23. gxf4 {[%clk 0:00:29.4]} 23... Bh3 {[%clk
0:02:16.7]} 24. f3 {[%clk 0:00:24.6]} 24... Bxg2+ {[%clk 0:02:13.6]} 25. Qxg2
{[%clk 0:00:25.5]} 25... Rdg8 {[%clk 0:02:13.4]} 26. Qf2 {[%clk 0:00:22.8]}
26... Nf5 {[%clk 0:02:12.5]} 27. Ne4 {[%clk 0:00:18.8]} 27... Rxg5 {[%clk
0:02:09.2]} 28. fxg5 {[%clk 0:00:17.6]} 28... cxd5 {[%clk 0:02:08.7]} 29. cxd5
{[%clk 0:00:18]} 29... Qxd5 {[%clk 0:02:02.3]} 30. Rac1 {[%clk 0:00:17.8]} 30...
Kb8 {[%clk 0:02:01.1]} 31. Rxc7 {[%clk 0:00:13.8]} 31... Kxc7 {[%clk 0:02:01.5]}
32. Qxa7 {[%clk 0:00:14]} 32... Nd4 {[%clk 0:01:33.5]} 33. Qa5+ {[%clk 0:00:12]}
33... Qxa5 {[%clk 0:01:32.6]} 0-1

[Event "Early-Titled-Tuesday-Blitz-May-07-2024"]
[Site "Chess.com"]
[Date "2024.05.07"]
[Round "6"]
[White "balack95"]
[Black "IwkooO"]
[Result "0-1"]
[WhiteElo "2513"]
[BlackElo "2700"]
[TimeControl "180+1"]
[EndTime "9:09:51 PDT"]
[Termination "IwkooO won by resignation"]

1. d4 {[%clk 0:03:00.9]} 1... e6 {[%clk 0:02:58.4]} 2. c4 {[%clk 0:03:01.2]}
2... Nf6 {[%clk 0:02:57.4]} 3. Nc3 {[%clk 0:03:00.9]} 3... d5 {[%clk 0:02:58.1]}
4. cxd5 {[%clk 0:03:00.6]} 4... exd5 {[%clk 0:02:59]} 5. Bg5 {[%clk 0:03:01.2]}
5... h6 {[%clk 0:02:57.6]} 6. Bh4 {[%clk 0:03:00.2]} 6... Be6 {[%clk 0:02:54.5]}
7. e3 {[%clk 0:02:58.8]} 7... c5 {[%clk 0:02:54.7]} 8. Bb5+ {[%clk 0:02:57.3]}
8... Nc6 {[%clk 0:02:54.8]} 9. Nf3 {[%clk 0:02:53.2]} 9... Be7 {[%clk
0:02:50.9]} 10. dxc5 {[%clk 0:02:52.4]} 10... g5 {[%clk 0:02:46.9]} 11. Bg3
{[%clk 0:02:52.1]} 11... Bxc5 {[%clk 0:02:47.2]} 12. O-O {[%clk 0:02:52]} 12...
O-O {[%clk 0:02:47.3]} 13. Nd4 {[%clk 0:02:50.2]} 13... Nxd4 {[%clk 0:02:46.1]}
14. exd4 {[%clk 0:02:51.1]} 14... Bd6 {[%clk 0:02:44.3]} 15. Bd3 {[%clk
0:02:50.5]} 15... Bxg3 {[%clk 0:02:42.1]} 16. hxg3 {[%clk 0:02:40.5]} 16... Qb6
{[%clk 0:02:40.9]} 17. Na4 {[%clk 0:02:38.5]} 17... Qd6 {[%clk 0:02:38.9]} 18.
Nc5 {[%clk 0:02:38.1]} 18... b6 {[%clk 0:02:38.5]} 19. Nxe6 {[%clk 0:02:38.2]}
19... fxe6 {[%clk 0:02:39.4]} 20. Rc1 {[%clk 0:02:37.2]} 20... Rac8 {[%clk
0:02:38.8]} 21. Qe2 {[%clk 0:02:36.1]} 21... Kg7 {[%clk 0:02:38.3]} 22. Bb1
{[%clk 0:02:35.8]} 22... Qe7 {[%clk 0:02:29.4]} 23. Rfe1 {[%clk 0:02:33.3]}
23... Rxc1 {[%clk 0:02:28.6]} 24. Rxc1 {[%clk 0:02:34.2]} 24... Rd8 {[%clk
0:02:27]} 25. Rc6 {[%clk 0:02:28.2]} 25... Rd6 {[%clk 0:02:26.3]} 26. Rc8 {[%clk
0:02:28.3]} 26... Rd8 {[%clk 0:02:21.5]} 27. Rxd8 {[%clk 0:02:27.5]} 27... Qxd8
{[%clk 0:02:22.4]} 28. Qxe6 {[%clk 0:02:27.8]} 28... Qc7 {[%clk 0:02:22.5]} 29.
Qe3 {[%clk 0:02:24.7]} 29... Kf7 {[%clk 0:02:20.3]} 30. Bf5 {[%clk 0:02:24.5]}
30... Qc6 {[%clk 0:02:11.5]} 31. g4 {[%clk 0:02:23.4]} 31... a5 {[%clk
0:02:09.9]} 32. f4 {[%clk 0:02:18]} 32... gxf4 {[%clk 0:01:58.2]} 33. Qxf4
{[%clk 0:02:18.9]} 33... Kg7 {[%clk 0:01:57.9]} 34. Kh2 {[%clk 0:02:17.7]} 34...
b5 {[%clk 0:01:48.8]} 35. g5 {[%clk 0:02:17.8]} 35... hxg5 {[%clk 0:01:47]} 36.
Qxg5+ {[%clk 0:02:18]} 36... Kf8 {[%clk 0:01:47.1]} 37. Qh6+ {[%clk 0:02:13.9]}
37... Kf7 {[%clk 0:01:41.7]} 38. Qg6+ {[%clk 0:02:11.4]} 38... Kf8 {[%clk
0:01:42]} 39. Qh6+ {[%clk 0:02:10.7]} 39... Kf7 {[%clk 0:01:42.3]} 40. Bg6+
{[%clk 0:02:10.6]} 40... Kg8 {[%clk 0:01:35.9]} 41. Qg5 {[%clk 0:01:59.2]} 41...
Kf8 {[%clk 0:01:33.9]} 42. Bf5 {[%clk 0:01:49.5]} 42... b4 {[%clk 0:01:29.4]}
43. Qg3 {[%clk 0:01:49.6]} 43... Qb6 {[%clk 0:01:20.6]} 44. Qe5 {[%clk
0:01:48.7]} 44... a4 {[%clk 0:01:10.7]} 45. Be6 {[%clk 0:01:44.8]} 45... Qd8
{[%clk 0:00:58.8]} 46. g4 {[%clk 0:01:42.6]} 46... Qe7 {[%clk 0:00:46.5]} 47. g5
{[%clk 0:01:41.7]} 47... Qh7+ {[%clk 0:00:46.9]} 48. Bh3 {[%clk 0:01:37.6]}
48... Ng4+ {[%clk 0:00:46.7]} 49. Kg3 {[%clk 0:01:38.1]} 49... Nxe5 {[%clk
0:00:47.2]} 50. dxe5 {[%clk 0:01:38.9]} 50... Qe4 {[%clk 0:00:47.8]} 51. e6
{[%clk 0:01:38.6]} 51... d4 {[%clk 0:00:47.4]} 52. Bg4 {[%clk 0:01:38.5]} 52...
d3 {[%clk 0:00:47.7]} 53. g6 {[%clk 0:01:38.5]} 53... Qxg6 {[%clk 0:00:47.5]}
54. e7+ {[%clk 0:01:38.4]} 54... Kxe7 {[%clk 0:00:47.6]} 0-1

[Event "Early-Titled-Tuesday-Blitz-May-07-2024"]
[Site "Chess.com"]
[Date "2024.05.07"]
[Round "6"]
[White "Nadtkins"]
[Black "Chessdude1987"]
[Result "1-0"]
[WhiteElo "2538"]
[BlackElo "2364"]
[TimeControl "180+1"]
[EndTime "9:09:52 PDT"]
[Termination "Nadtkins won by resignation"]

1. Nf3 {[%clk 0:03:00.9]} 1... Nf6 {[%clk 0:02:59.7]} 2. g3 {[%clk 0:03:00.9]}
2... g6 {[%clk 0:02:59.8]} 3. Bg2 {[%clk 0:03:01.1]} 3... Bg7 {[%clk 0:03:00.2]}
4. O-O {[%clk 0:03:02]} 4... O-O {[%clk 0:03:00.4]} 5. d4 {[%clk 0:03:02.8]}
5... d6 {[%clk 0:02:59.8]} 6. Re1 {[%clk 0:03:03]} 6... Nc6 {[%clk 0:02:57.2]}
7. e4 {[%clk 0:03:02.8]} 7... e5 {[%clk 0:02:55.8]} 8. d5 {[%clk 0:02:46.9]}
8... Ne7 {[%clk 0:02:50.3]} 9. c4 {[%clk 0:02:47.2]} 9... h6 {[%clk 0:02:47.2]}
10. Nc3 {[%clk 0:02:46.3]} 10... Nh5 {[%clk 0:02:45.7]} 11. Nh4 {[%clk
0:02:40.8]} 11... Bd7 {[%clk 0:02:27.3]} 12. Be3 {[%clk 0:02:35.1]} 12... Qc8
{[%clk 0:02:26]} 13. c5 {[%clk 0:02:31.8]} 13... Re8 {[%clk 0:02:15.9]} 14. Rc1
{[%clk 0:02:30.5]} 14... dxc5 {[%clk 0:02:10]} 15. Bxc5 {[%clk 0:02:25.8]} 15...
b6 {[%clk 0:02:10.2]} 16. Bxe7 {[%clk 0:02:20.2]} 16... Rxe7 {[%clk 0:02:10.3]}
17. d6 {[%clk 0:02:20.2]} 17... Re6 {[%clk 0:01:53.2]} 18. Nd5 {[%clk
0:02:06.2]} 18... Rxd6 {[%clk 0:01:00.1]} 19. Ne7+ {[%clk 0:02:00.1]} 19... Kh7
{[%clk 0:00:54.2]} 20. Nxc8 {[%clk 0:01:52.7]} 20... Rxd1 {[%clk 0:00:53.4]} 21.
Rexd1 {[%clk 0:01:53.4]} 21... Bxc8 {[%clk 0:00:53.2]} 22. Rxc7 {[%clk
0:01:53.7]} 22... Be6 {[%clk 0:00:51.2]} 23. a3 {[%clk 0:01:42.5]} 23... a5
{[%clk 0:00:46.4]} 24. Rd6 {[%clk 0:01:35.1]} 24... Rb8 {[%clk 0:00:38.3]} 25.
Ra7 {[%clk 0:01:09.6]} 25... Bf8 {[%clk 0:00:33.5]} 26. Rxe6 {[%clk 0:01:07.8]}
26... Kg8 {[%clk 0:00:29.8]} 27. Rxe5 {[%clk 0:01:03.1]} 27... Bg7 {[%clk
0:00:25.5]} 28. Rb5 {[%clk 0:01:01.7]} 28... Bxb2 {[%clk 0:00:25.1]} 29. Rxb2
{[%clk 0:01:01.3]} 1-0

[Event "Early-Titled-Tuesday-Blitz-May-07-2024"]
[Site "Chess.com"]
[Date "2024.05.07"]
[Round "6"]
[White "Stanbad1"]
[Black "Groetzi"]
[Result "1-0"]
[WhiteElo "2601"]
[BlackElo "2413"]
[TimeControl "180+1"]
[EndTime "9:09:56 PDT"]
[Termination "Stanbad1 won by resignation"]

1. d4 {[%clk 0:03:00.9]} 1... d5 {[%clk 0:02:59.3]} 2. c4 {[%clk 0:03:01.1]}
2... c6 {[%clk 0:02:59.3]} 3. cxd5 {[%clk 0:03:01]} 3... cxd5 {[%clk 0:02:59.5]}
4. Bf4 {[%clk 0:03:01.7]} 4... Nc6 {[%clk 0:02:57.2]} 5. e3 {[%clk 0:03:02.1]}
5... Nf6 {[%clk 0:02:56.7]} 6. Nc3 {[%clk 0:03:01.6]} 6... a6 {[%clk 0:02:57]}
7. Be2 {[%clk 0:03:01.9]} 7... Bf5 {[%clk 0:02:42]} 8. Nf3 {[%clk 0:03:01.4]}
8... e6 {[%clk 0:02:41.7]} 9. Rc1 {[%clk 0:03:00]} 9... Bd6 {[%clk 0:02:39.8]}
10. Ne5 {[%clk 0:02:56.8]} 10... O-O {[%clk 0:02:23.4]} 11. Nxc6 {[%clk
0:02:47.8]} 11... bxc6 {[%clk 0:02:24.3]} 12. Bxd6 {[%clk 0:02:47.4]} 12... Qxd6
{[%clk 0:02:25.2]} 13. O-O {[%clk 0:02:47.7]} 13... c5 {[%clk 0:02:19]} 14. dxc5
{[%clk 0:02:43.4]} 14... Qxc5 {[%clk 0:02:19.9]} 15. Bf3 {[%clk 0:02:43.9]}
15... Qa5 {[%clk 0:02:07.4]} 16. a3 {[%clk 0:02:42.1]} 16... Rfb8 {[%clk
0:02:07.1]} 17. Qd4 {[%clk 0:02:41]} 17... Rc8 {[%clk 0:01:51.5]} 18. h3 {[%clk
0:02:39.4]} 18... Rc4 {[%clk 0:01:47.6]} 19. Qe5 {[%clk 0:02:35]} 19... Qb6
{[%clk 0:01:42.8]} 20. Nxd5 {[%clk 0:02:29.5]} 20... exd5 {[%clk 0:01:36.4]} 21.
Rxc4 {[%clk 0:02:28.8]} 21... Re8 {[%clk 0:01:33.1]} 22. Qc7 {[%clk 0:02:24.1]}
22... Qxb2 {[%clk 0:01:26]} 23. Rf4 {[%clk 0:02:18.3]} 23... Bd3 {[%clk
0:01:21.4]} 24. Rd1 {[%clk 0:02:17.3]} 24... Bc4 {[%clk 0:01:18.6]} 25. Qc6
{[%clk 0:02:14.8]} 25... Re6 {[%clk 0:01:09.6]} 26. Qc5 {[%clk 0:02:05.3]} 26...
Qe5 {[%clk 0:01:03.2]} 27. Rb1 {[%clk 0:01:51.4]} 27... Re8 {[%clk 0:00:56.1]}
28. Rb7 {[%clk 0:01:50]} 28... Qa1+ {[%clk 0:00:46.7]} 29. Kh2 {[%clk
0:01:48.6]} 29... Qe5 {[%clk 0:00:47.6]} 30. Rc7 {[%clk 0:01:45.4]} 30... g5
{[%clk 0:00:44.6]} 31. g3 {[%clk 0:01:20.5]} 31... gxf4 {[%clk 0:00:44.7]} 32.
gxf4 {[%clk 0:01:21.4]} 32... Qe6 {[%clk 0:00:41.6]} 33. Rc6 {[%clk 0:01:19.6]}
33... Qf5 {[%clk 0:00:36.1]} 34. Qd4 {[%clk 0:01:18.3]} 34... Ne4 {[%clk
0:00:34.7]} 35. Bg4 {[%clk 0:01:14.8]} 35... Qd7 {[%clk 0:00:30.1]} 36. Bxd7
{[%clk 0:01:13.4]} 1-0

[Event "Early-Titled-Tuesday-Blitz-May-07-2024"]
[Site "Chess.com"]
[Date "2024.05.07"]
[Round "6"]
[White "kekic76"]
[Black "aljado"]
[Result "1-0"]
[WhiteElo "2348"]
[BlackElo "2174"]
[TimeControl "180+1"]
[EndTime "9:09:56 PDT"]
[Termination "kekic76 won by resignation"]

1. c4 {[%clk 0:03:00.9]} 1... e5 {[%clk 0:02:58.7]} 2. Nc3 {[%clk 0:02:58.1]}
2... Nf6 {[%clk 0:02:58.2]} 3. d3 {[%clk 0:02:57.8]} 3... Nc6 {[%clk 0:02:57.9]}
4. Nf3 {[%clk 0:02:58.3]} 4... d5 {[%clk 0:02:57.4]} 5. cxd5 {[%clk 0:02:57.9]}
5... Nxd5 {[%clk 0:02:57.9]} 6. Bd2 {[%clk 0:02:58]} 6... Be7 {[%clk 0:02:56.2]}
7. g3 {[%clk 0:02:57.8]} 7... O-O {[%clk 0:02:55.9]} 8. Bg2 {[%clk 0:02:58.3]}
8... Be6 {[%clk 0:02:55.3]} 9. O-O {[%clk 0:02:58.2]} 9... Nb6 {[%clk
0:02:54.6]} 10. a3 {[%clk 0:02:58.2]} 10... Qd7 {[%clk 0:02:48.1]} 11. Rc1
{[%clk 0:02:56.7]} 11... Rad8 {[%clk 0:02:38.6]} 12. b4 {[%clk 0:02:56.1]} 12...
a6 {[%clk 0:02:32]} 13. Ne4 {[%clk 0:02:48.7]} 13... Bh3 {[%clk 0:02:18.3]} 14.
Nc5 {[%clk 0:02:11.7]} 14... Bxc5 {[%clk 0:02:16.6]} 15. Rxc5 {[%clk 0:02:12.6]}
15... Bxg2 {[%clk 0:02:13.6]} 16. Kxg2 {[%clk 0:02:10.7]} 16... f6 {[%clk
0:02:10.2]} 17. Qb3+ {[%clk 0:02:08.9]} 17... Kh8 {[%clk 0:02:08.6]} 18. Rfc1
{[%clk 0:01:55.8]} 18... Rfe8 {[%clk 0:01:49.9]} 19. a4 {[%clk 0:01:49.9]} 19...
e4 {[%clk 0:01:12.6]} 20. dxe4 {[%clk 0:01:47.2]} 20... Rxe4 {[%clk 0:01:11.9]}
21. b5 {[%clk 0:01:47.2]} 21... axb5 {[%clk 0:01:08.2]} 22. axb5 {[%clk
0:01:46.1]} 22... Na5 {[%clk 0:00:33]} 23. Bxa5 {[%clk 0:01:39.2]} 23... Rxe2
{[%clk 0:00:31.5]} 24. Rxc7 {[%clk 0:01:37.7]} 24... Qd6 {[%clk 0:00:27.3]} 25.
Rxb7 {[%clk 0:01:18]} 25... Nd5 {[%clk 0:00:20.7]} 26. Bxd8 {[%clk 0:01:05.5]}
1-0

[Event "Early-Titled-Tuesday-Blitz-May-07-2024"]
[Site "Chess.com"]
[Date "2024.05.07"]
[Round "6"]
[White "Zheenbekov86"]
[Black "karinachess1"]
[Result "0-1"]
[WhiteElo "2417"]
[BlackElo "2604"]
[TimeControl "180+1"]
[EndTime "9:09:59 PDT"]
[Termination "karinachess1 won on time"]

1. Nf3 {[%clk 0:03:00.9]} 1... Nf6 {[%clk 0:03:00.1]} 2. g3 {[%clk 0:03:00.4]}
2... g6 {[%clk 0:03:00.7]} 3. Bg2 {[%clk 0:03:00.7]} 3... Bg7 {[%clk 0:03:01.5]}
4. O-O {[%clk 0:03:01.2]} 4... O-O {[%clk 0:03:02.3]} 5. d3 {[%clk 0:03:00.9]}
5... d6 {[%clk 0:03:03]} 6. c4 {[%clk 0:03:00.6]} 6... e5 {[%clk 0:03:03]} 7.
Nc3 {[%clk 0:03:00.3]} 7... Nc6 {[%clk 0:03:03.4]} 8. a3 {[%clk 0:03:00]} 8...
a5 {[%clk 0:03:03]} 9. Rb1 {[%clk 0:03:00]} 9... h6 {[%clk 0:03:03.2]} 10. b4
{[%clk 0:02:59.8]} 10... Be6 {[%clk 0:03:03.6]} 11. Nd2 {[%clk 0:02:54.1]} 11...
Qd7 {[%clk 0:02:57.2]} 12. Nd5 {[%clk 0:02:44.6]} 12... Rab8 {[%clk 0:02:51.9]}
13. b5 {[%clk 0:02:28.4]} 13... Nd4 {[%clk 0:02:47]} 14. Nxf6+ {[%clk
0:02:09.3]} 14... Bxf6 {[%clk 0:02:47.9]} 15. Ne4 {[%clk 0:02:05.3]} 15... Bg7
{[%clk 0:02:48.3]} 16. Bxh6 {[%clk 0:01:50.5]} 16... Bh3 {[%clk 0:02:48.3]} 17.
Bxg7 {[%clk 0:01:46.2]} 17... Kxg7 {[%clk 0:02:49.2]} 18. Qd2 {[%clk 0:01:44]}
18... Rh8 {[%clk 0:02:46.4]} 19. Ng5 {[%clk 0:00:46.2]} 19... Bxg2 {[%clk
0:02:45.2]} 20. Kxg2 {[%clk 0:00:46.1]} 20... f6 {[%clk 0:02:44.6]} 21. e3
{[%clk 0:00:46.2]} 21... fxg5 {[%clk 0:02:33.5]} 22. exd4 {[%clk 0:00:45.8]}
22... Qh3+ {[%clk 0:02:18.4]} 23. Kf3 {[%clk 0:00:45.2]} 23... Rbf8+ {[%clk
0:02:08.9]} 24. Ke2 {[%clk 0:00:42.3]} 24... Qg4+ {[%clk 0:02:08.8]} 25. Ke1
{[%clk 0:00:37.4]} 25... Rxh2 {[%clk 0:02:02.2]} 26. Qe3 {[%clk 0:00:21.5]}
26... exd4 {[%clk 0:01:49.9]} 27. Qe2 {[%clk 0:00:15.8]} 27... Qf5 {[%clk
0:01:37.7]} 28. Rb2 {[%clk 0:00:02]} 28... Kf7 {[%clk 0:01:27]} 0-1

[Event "Early-Titled-Tuesday-Blitz-May-07-2024"]
[Site "Chess.com"]
[Date "2024.05.07"]
[Round "6"]
[White "AcostaPablo"]
[Black "Mikhail_Bryakin"]
[Result "0-1"]
[WhiteElo "2632"]
[BlackElo "2891"]
[TimeControl "180+1"]
[EndTime "9:10:01 PDT"]
[Termination "Mikhail_Bryakin won by resignation"]

1. d4 {[%clk 0:03:00.9]} 1... Nf6 {[%clk 0:02:57.8]} 2. c4 {[%clk 0:02:58.7]}
2... d6 {[%clk 0:02:58.1]} 3. Nf3 {[%clk 0:02:58.9]} 3... g6 {[%clk 0:02:55.7]}
4. Nc3 {[%clk 0:02:59.3]} 4... Bg7 {[%clk 0:02:51.9]} 5. Bg5 {[%clk 0:02:59.1]}
5... h6 {[%clk 0:02:50.5]} 6. Bh4 {[%clk 0:02:58.3]} 6... g5 {[%clk 0:02:49.3]}
7. Bg3 {[%clk 0:02:58.1]} 7... Nh5 {[%clk 0:02:48.8]} 8. e3 {[%clk 0:02:57.7]}
8... Nc6 {[%clk 0:02:43.9]} 9. Bd3 {[%clk 0:02:47]} 9... e5 {[%clk 0:02:43.6]}
10. Nxe5 {[%clk 0:02:32.3]} 10... Nxe5 {[%clk 0:02:32]} 11. Bxe5 {[%clk
0:02:28.1]} 11... dxe5 {[%clk 0:02:31.7]} 12. Qxh5 {[%clk 0:02:25.3]} 12... exd4
{[%clk 0:02:32.4]} 13. exd4 {[%clk 0:02:16.9]} 13... Qxd4 {[%clk 0:02:06]} 14.
Qe2+ {[%clk 0:01:52.8]} 14... Be6 {[%clk 0:02:05.4]} 15. Rd1 {[%clk 0:01:30.2]}
15... O-O-O {[%clk 0:02:02.5]} 16. O-O {[%clk 0:00:58.7]} 16... Kb8 {[%clk
0:02:02.1]} 17. h3 {[%clk 0:00:31.6]} 17... h5 {[%clk 0:01:52.9]} 18. Qe4 {[%clk
0:00:28.8]} 18... Qc5 {[%clk 0:01:41.3]} 19. Be2 {[%clk 0:00:23]} 19... g4
{[%clk 0:01:35.9]} 20. Rxd8+ {[%clk 0:00:21.8]} 20... Rxd8 {[%clk 0:01:36.8]}
21. hxg4 {[%clk 0:00:21.8]} 21... hxg4 {[%clk 0:01:36.6]} 22. Rd1 {[%clk
0:00:19.7]} 22... Rxd1+ {[%clk 0:01:33.5]} 23. Nxd1 {[%clk 0:00:20.6]} 23... Bc8
{[%clk 0:01:18.6]} 24. Bxg4 {[%clk 0:00:18.5]} 24... f5 {[%clk 0:01:18.5]} 25.
b4 {[%clk 0:00:02.4]} 25... fxe4 {[%clk 0:01:15.7]} 26. bxc5 {[%clk 0:00:01.2]}
26... Bxg4 {[%clk 0:01:16.4]} 27. Ne3 {[%clk 0:00:02.1]} 27... Be6 {[%clk
0:01:16.8]} 0-1

[Event "Early-Titled-Tuesday-Blitz-May-07-2024"]
[Site "Chess.com"]
[Date "2024.05.07"]
[Round "6"]
[White "Ivan11Martic"]
[Black "AttilaTurzo"]
[Result "1-0"]
[WhiteElo "2629"]
[BlackElo "2469"]
[TimeControl "180+1"]
[EndTime "9:10:07 PDT"]
[Termination "Ivan11Martic won by checkmate"]

1. e4 {[%clk 0:03:00.9]} 1... c5 {[%clk 0:02:59.7]} 2. Nf3 {[%clk 0:03:00.3]}
2... d6 {[%clk 0:03:00]} 3. d4 {[%clk 0:03:00.2]} 3... cxd4 {[%clk 0:03:00.9]}
4. Nxd4 {[%clk 0:03:00.6]} 4... Nf6 {[%clk 0:03:01.5]} 5. f3 {[%clk 0:03:01]}
5... e5 {[%clk 0:02:45.5]} 6. Nb3 {[%clk 0:02:59.1]} 6... d5 {[%clk 0:02:37.9]}
7. Bg5 {[%clk 0:02:56.8]} 7... dxe4 {[%clk 0:02:30]} 8. Qxd8+ {[%clk 0:02:55.5]}
8... Kxd8 {[%clk 0:02:30.9]} 9. fxe4 {[%clk 0:02:53.7]} 9... Be7 {[%clk
0:02:18.4]} 10. Nc3 {[%clk 0:02:52.7]} 10... Be6 {[%clk 0:02:13.5]} 11. O-O-O+
{[%clk 0:02:52.5]} 11... Kc7 {[%clk 0:02:04.7]} 12. Be2 {[%clk 0:02:30.3]} 12...
Nbd7 {[%clk 0:02:00.5]} 13. Nb5+ {[%clk 0:02:25.1]} 13... Kc6 {[%clk 0:01:47.8]}
14. Be3 {[%clk 0:02:09.6]} 14... b6 {[%clk 0:01:47.3]} 15. Rd3 {[%clk
0:01:40.9]} 15... Nxe4 {[%clk 0:01:38]} 16. Bf3 {[%clk 0:01:30.9]} 16... f5
{[%clk 0:01:25.9]} 17. N5d4+ {[%clk 0:01:28]} 17... exd4 {[%clk 0:01:22]} 18.
Nxd4+ {[%clk 0:01:28.9]} 18... Kd5 {[%clk 0:01:13.8]} 19. Nxf5+ {[%clk
0:01:22.8]} 19... Ke5 {[%clk 0:01:08.7]} 20. Nxe7 {[%clk 0:01:18.5]} 20... Ndf6
{[%clk 0:01:03.4]} 21. Re1 {[%clk 0:01:04.1]} 21... Bc4 {[%clk 0:00:35.8]} 22.
Nc6+ {[%clk 0:00:54]} 22... Kf5 {[%clk 0:00:34.8]} 23. Rd4 {[%clk 0:00:52.2]}
23... b5 {[%clk 0:00:16.2]} 24. g4+ {[%clk 0:00:50.9]} 24... Kg6 {[%clk
0:00:10.8]} 25. Ne5# {[%clk 0:00:50.2]} 1-0